bitfinex-derivatives/quotes_SOLF0:USTF0_20250714
["timestamp","ask_amount","ask_price","bid_price","bid_amount"]
[1752523145036,3.45,164.16,164.11,4.57066604]
[1752523145328,6.83256968,164.18,164.13,4.57066604]
[1752523145540,10.24885453,164.21,164.17,7.95066604]
[1752523145829,10.24885453,164.23,164.21,3.38]
[1752523146132,13.69885453,164.24,164.22,6.0885]
[1752523146329,13.69885453,164.24,164.23,3.38]
[1752523146527,10.24885453,164.24,164.23,3.38]
[1752523146735,10.18324932,164.24,164.23,3.38]
[1752523147230,10.18324932,164.26,164.24,3.38]
[1752523147425,10.18324932,164.26,164.22,4.57066604]
[1752523147630,10.18324932,164.26,164.16,4.57066604]
[1752523147832,10.18324932,164.26,164.25,3.38]
[1752523148330,13.63324932,164.26,164.25,3.38]
[1752523148728,10.18324932,164.26,164.25,9.4673]
[1752523148932,13.63324932,164.26,164.25,3.38]
[1752523149129,10.18324932,164.26,164.25,3.38]
[1752523149530,10.18324932,164.26,164.25,14.03796604]
[1752523149726,3.45,164.3,164.25,14.03796604]
[1752523149727,10.18324932,164.27,164.26,3.38]
[1752523149934,10.16055272,164.28,164.27,3.38]
[1752523150141,3.45,164.3,164.23,3.38]
[1752523150431,3.45,164.28,164.23,3.38]
[1752523150631,3.45,164.28,164.23,7.95066604]
[1752523150829,3.45,164.28,164.24,3.38]
[1752523151033,3.45,164.3,164.24,3.38]
[1752523151530,3.45,164.32,164.26,3.38]
[1752523151730,3.45,164.31,164.26,3.38]
[1752523151929,3.45,164.31,164.27,3.38]
[1752523152130,3.45,164.31,164.17,3.38]
[1752523152331,3.45,164.31,164.24,3.38]
[1752523152841,3.45,164.27,164.24,3.38]
[1752523153729,4.57066604,164.26,164.09,182.33445836]
[1752523153941,3.45,164.25,164.21,3.38]
[1752523154234,3.45,164.25,164.19,4.57066604]
[1752523154235,3.45,164.25,164.22,3.38]
[1752523154434,3.45,164.23,164.22,3.38]
[1752523154836,3.45,164.25,164.22,9.4681]
[1752523155035,3.45,164.24,164.23,3.38]
[1752523155229,4.57066604,164.28,164.23,3.38]
[1752523155230,177.36,164.26,164.23,3.38]
[1752523155434,3.45,164.25,164.24,3.38]
[1752523155629,3.45,164.25,164.21,4.57066604]
[1752523155835,3.45,164.27,164.24,3.38]
[1752523157140,3.45,164.28,164.25,3.38]
[1752523157430,3.45,164.29,164.24,3.38]
[1752523157630,4.57066604,164.26,164.21,3.38]
[1752523157840,3.45,164.25,164.19,3.38]
[1752523158047,3.45,164.23,164.2,3.38]
[1752523158341,3.45,164.21,164.18,3.38]
[1752523158537,3.45,164.21,164.15,3.38]
[1752523158742,3.45,164.2,164.15,3.38]
[1752523159043,3.45,164.19,164.15,3.38]
[1752523159238,3.45,164.19,164.16,6.0906]
[1752523159433,3.45,164.18,164.17,3.38]
[1752523159638,3.45,164.18,164.12,3.38]
[1752523159938,3.45,164.17,164.16,3.38]
[1752523160138,3.45,164.16,164.15,6.0911]
[1752523160342,3.45,164.16,164.15,3.38]
[1752523160536,3.45,164.18,164.16,3.38]
[1752523160737,181.17,164.21,164.14,3.38]
[1752523160935,3.45,164.21,164.14,3.38]
[1752523161934,3.45,164.19,164.17,9.4703]
[1752523162141,3.45,164.18,164.17,3.38]
[1752523162338,177.72,164.2,164.11,7.61910789]
[1752523162642,177.72,164.2,164.16,3.38]
[1752523162842,3.45,164.19,164.17,6.09]
[1752523163036,3.45,164.18,164.17,9.47]
[1752523163654,3.45,164.2,164.14,3.38]
[1752523163935,3.45,164.22,164.15,7.61910789]
[1752523164136,3.45,164.22,164.11,3.38]
[1752523164341,181.25,164.21,164.15,3.38]
[1752523164543,3.45,164.21,164.15,3.38]
[1752523164839,177.8,164.23,164.2,3.38]
[1752523165136,6.0874,164.25,164.21,3.38]
[1752523165444,3.45,164.23,164.18,3.38]
[1752523165637,3.45,164.22,164.17,3.38]
[1752523165838,177.76,164.23,164.17,3.38]
[1752523166042,3.45,164.22,164.17,3.38]
[1752523166342,3.45,164.22,164.16,7.61910789]
[1752523166542,177.74,164.22,164.17,3.38]
[1752523166743,177.74,164.22,164.16,7.61910789]
[1752523167040,181.19,164.22,164.17,3.38]
[1752523167241,3.45,164.27,164.18,7.61910789]
[1752523167441,3.45,164.25,164.2,3.38]
[1752523167637,3.45,164.23,164.2,3.38]
[1752523168039,181.67,164.23,164.22,6.0885]
[1752523168237,181.67,164.23,164.22,9.4685]
[1752523168637,215.66035131,164.3,164.23,3.38]
[1752523168842,178.28,164.29,164.23,3.38]
[1752523169239,3.45,164.27,164.23,3.38]
[1752523169444,3.45,164.28,164.24,7.61185242]
[1752523169644,3.45,164.28,164.22,7.61185242]
[1752523169835,3.45,164.28,164.23,3.38]
[1752523170239,3.45,164.27,164.17,3.38]
[1752523170444,3.45,164.28,164.22,3.38]
[1752523170839,3.45,164.28,164.22,3.41]
[1752523171043,182.01,164.28,164.22,3.41]
[1752523171345,3.49,164.27,164.22,3.41]
[1752523171641,7.61185242,164.31,164.22,3.41]
[1752523171944,178.52,164.3,164.22,3.41]
[1752523172141,3.49,164.29,164.22,3.41]
[1752523172338,178.48,164.28,164.22,3.41]
[1752523172537,181.97,164.28,164.22,3.41]
[1752523172746,6.0846,164.33,164.28,6.0859]
[1752523172950,3.49,164.25,164.24,3.41]
[1752523173246,3.49,164.25,164.23,6.0879]
[1752523173445,3.49,164.25,164.2,3.41]
[1752523173647,3.49,164.25,164.21,3.41]
[1752523173948,3.49,164.25,164.23,6.0878]
[1752523174138,3.49,164.25,164.21,3.41]
[1752523174544,3.49,164.25,164.23,6.0881]
[1752523175149,3.49,164.25,164.22,6.0884]
[1752523175345,3.49,164.24,164.19,3.41]
[1752523175648,178.46,164.25,164.19,3.41]
[1752523175851,3.49,164.26,164.21,3.41]
[1752523176744,3.49,164.26,164.17,7.61488511]
[1752523176946,3.49,164.26,164.18,3.41]
[1752523178053,3.49,164.24,164.18,3.41]
[1752523178455,11.10749681,164.24,164.18,3.41]
[1752523178751,3.49,164.23,164.19,3.41]
[1752523178954,3.49,164.21,164.19,3.41]
[1752523179152,3.49,164.21,164.18,6.0897]
[1752523179454,3.49,164.2,164.15,3.41]
[1752523179951,4.57071414,164.21,164.15,3.41]
[1752523180152,3.49,164.19,164.15,3.41]
[1752523180358,3.49,164.18,164.15,3.41]
[1752523180550,3.49,164.18,164.17,3.41]
[1752523180850,3.49,164.17,164.13,3.41]
[1752523181049,3.49,164.17,164.14,3.41]
[1752523181750,3.49,164.17,164.11,3.41]
[1752523181955,3.49,164.17,164.13,3.41]
[1752523182252,3.49,164.17,164.11,3.41]
[1752523182847,186.60071414,164.19,164.11,3.41]
[1752523183047,3.49,164.18,164.11,3.41]
[1752523183351,3.49,164.18,164.16,6.0906]
[1752523183550,183.11071414,164.19,164.16,6.0906]
[1752523183750,3.49,164.18,164.16,6.0906]
[1752523184354,3.49,164.19,164.08,4.57016249]
[1752523184547,3.49,164.21,164.14,4.57016249]
[1752523184750,3.49,164.21,164.15,3.41]
[1752523184949,3.49,164.21,164.18,9.4997]
[1752523185555,3.49,164.21,164.14,4.57016249]
[1752523185556,3.49,164.23,164.15,3.41]
[1752523185757,182.11,164.22,164.16,4.57016249]
[1752523186051,182.11,164.22,164.17,3.41]
[1752523186052,3.49,164.2,164.17,3.41]
[1752523186450,215.66035131,164.25,164.08,4.57016249]
[1752523186654,4.57016249,164.22,164.17,3.41]
[1752523186857,3.49,164.21,164.15,3.41]
[1752523187057,3.49,164.21,164.19,6.0894]
[1752523187555,3.49,164.21,164.2,6.0892]
[1752523188157,3.49,164.21,164.2,9.4992]
[1752523188352,178.7,164.24,164.18,7.61847887]
[1752523188555,3.49,164.23,164.19,3.41]
[1752523188854,3.49,164.22,164.21,9.4986]
[1752523189048,3.49,164.24,164.18,7.61847887]
[1752523189253,3.49,164.23,164.2,7.61847887]
[1752523189449,3.49,164.23,164.21,3.41]
[1752523189661,182.45,164.25,164.21,3.41]
[1752523189960,3.49,164.23,164.22,3.41]
[1752523190255,3.49,164.23,164.22,6.0885]
[1752523190462,3.49,164.23,164.2,3.41]
[1752523190753,3.49,164.24,164.23,6.0881]
[1752523190960,182.45,164.24,164.23,6.0881]
[1752523191459,3.49,164.28,164.24,6.0876]
[1752523191760,179.0,164.25,164.23,3.41]
[1752523191950,223.27883018,164.29,164.23,9.4979]
[1752523191951,3.49,164.24,164.23,9.4979]
[1752523192155,178.98,164.26,164.23,3.41]
[1752523192349,215.66035131,164.29,164.23,3.41]
[1752523192550,182.55,164.27,164.26,9.4969]
[1752523192750,215.66035131,164.29,164.26,9.4969]
[1752523192751,215.66035131,164.29,164.26,3.41]
[1752523192958,215.66035131,164.29,164.18,3.41]
[1752523192959,3.49,164.28,164.18,3.41]
[1752523193156,3.49,164.27,164.26,6.0868]
[1752523193553,3.49,164.27,164.26,9.4968]
[1752523193863,6.729204,164.37,164.26,3.41]
[1752523194155,705.34,164.39,164.32,6.0846]
[1752523194459,179.4,164.36,164.31,3.41]
[1752523194652,533.72376759,164.39,164.31,3.41]
[1752523194855,179.56,164.36,164.31,3.41]
[1752523195153,179.72,164.37,164.22,17.21115836]
[1752523195358,179.72,164.37,164.29,3.41]
[1752523196051,3.67994489,164.35,164.29,3.41]
[1752523196254,3.49,164.34,164.32,9.4945]
[1752523196460,3.49,164.34,164.28,3.41]
[1752523196662,3.49,164.34,164.32,6.0847]
[1752523196962,3.49,164.34,164.32,9.4947]
[1752523197456,3.49,164.33,164.32,9.4947]
[1752523198357,3.49,164.33,164.31,6.085]
[1752523198552,3.49,164.33,164.31,9.495]
[1752523198751,3.49,164.33,164.3,6.0852]
[1752523199161,179.66,164.34,164.3,9.4952]
[1752523199360,179.66,164.34,164.2,7.60376759]
[1752523199361,3.49,164.33,164.31,9.4949]
[1752523199760,3.49,164.33,164.31,3.41]
[1752523200059,3.49,164.33,164.32,6.0848]
[1752523203057,3.29,164.32,164.31,9.585]
[1752523203366,3.29,164.32,164.26,3.5]
[1752523203367,3.29,164.31,164.26,3.5]
[1752523203760,3.29,164.34,164.26,3.5]
[1752523203958,179.4,164.33,164.28,3.5]
[1752523204264,3.29,164.32,164.28,3.5]
[1752523204563,3.29,164.31,164.26,6.0867]
[1752523204760,7.61101286,164.3,164.26,6.0867]
[1752523204956,3.29,164.29,164.21,3.5]
[1752523205161,3.29,164.27,164.21,3.5]
[1752523205564,3.29,164.27,164.23,6.0878]
[1752523205766,3.29,164.27,164.19,3.5]
[1752523206064,3.29,164.27,164.23,6.088]
[1752523206260,3.29,164.27,164.21,3.5]
[1752523207166,3.29,164.25,164.21,3.5]
[1752523207364,3.29,164.25,164.22,3.5]
[1752523207558,3.29,164.25,164.17,3.5]
[1752523207962,3.29,164.23,164.17,3.5]
[1752523208159,3.29,164.21,164.17,3.5]
[1752523208365,3.29,164.21,164.2,6.0892]
[1752523208869,3.29,164.2,164.19,9.5895]
[1752523209065,3.29,164.2,164.19,6.0895]
[1752523209268,3.29,164.21,164.13,3.5]
[1752523209570,3.29,164.24,164.11,3.5]
[1752523209768,3.29,164.24,164.1,18.2779]
[1752523209769,182.87,164.24,164.16,3.5]
[1752523209970,3.29,164.23,164.2,9.5892]
[1752523210568,3.29,164.23,164.21,6.0888]
[1752523210769,3.29,164.22,164.21,6.0888]
[1752523211372,3.29,164.22,164.21,3.5]
[1752523212565,3.29,164.22,164.15,7.61101286]
[1752523212766,3.29,164.22,164.1,25.88891286]
[1752523212767,3.29,164.21,164.19,3.5]
[1752523212973,3.29,164.19,164.14,3.5]
[1752523213273,3.29,164.19,164.1,3.5]
[1752523214075,182.85,164.18,164.1,3.5]
[1752523214273,3.29,164.17,164.1,3.5]
[1752523215370,3.29,164.17,164.12,6.0919]
[1752523215674,3.29,164.17,164.13,3.5]
[1752523216073,3.29,164.17,164.13,9.5917]
[1752523216279,3.29,164.17,164.13,6.0917]
[1752523216584,3.29,164.17,164.14,3.5]
[1752523216776,3.29,164.16,164.14,9.5915]
[1752523216982,3.29,164.16,164.15,3.5]
[1752523217583,3.29,164.16,164.08,3.5]
[1752523217983,3.29,164.15,164.13,9.5916]
[1752523218190,179.42,164.14,164.07,7.61718029]
[1752523218379,3.29,164.13,164.12,3.5]
[1752523218891,3.29,164.13,164.05,7.61718029]
[1752523219080,3.29,164.12,164.03,7.61718029]
[1752523219283,3.29,164.12,164.04,3.5]
[1752523219481,7.6318059,164.08,163.94,5.03445836]
[1752523219787,7.6318059,164.08,163.98,7.6318059]
[1752523219788,3.29,164.05,163.98,7.6318059]
[1752523219988,179.48,164.07,163.98,7.6318059]
[1752523219989,3.29,164.07,163.98,7.6318059]
[1752523220189,179.52,164.06,164.03,6.0952]
[1752523220390,3.29,164.05,164.03,6.0952]
[1752523221094,3.29,164.05,164.02,6.0959]
[1752523221590,182.77,164.05,164.03,3.5]
[1752523222189,3.29,164.05,164.03,3.5]
[1752523222491,3.29,164.03,163.95,3.5]
[1752523222687,187.07220965,164.04,163.95,3.5]
[1752523222688,182.71,164.02,163.95,3.5]
[1752523223086,3.29,164.01,163.95,3.5]
[1752523223292,3.29,164.01,163.96,7.63220965]
[1752523223491,179.44,164.01,164.0,9.5967]
[1752523223687,179.44,164.01,163.94,7.63220965]
[1752523223997,3.29,164.0,163.93,3.5]
[1752523224390,3.29,164.0,163.97,6.0976]
[1752523224592,3.29,164.0,163.98,3.5]
[1752523225491,3.29,164.0,163.99,3.5]
[1752523225990,10.92220965,164.0,163.97,3.5]
[1752523226193,3.29,163.99,163.95,3.5]
[1752523227091,3.29,163.99,163.95,9.5984]
[1752523227287,179.42,163.98,163.91,3.5]
[1752523227491,182.71,163.98,163.91,3.5]
[1752523227692,3.29,163.97,163.96,3.5]
[1752523229094,3.29,163.97,163.96,9.5982]
[1752523230094,3.29,163.97,163.96,3.5]
[1752523230498,3.4,163.96,163.95,3.52]
[1752523230700,187.05220965,163.98,163.94,6.0988]
[1752523230890,3.4,163.96,163.95,3.52]
[1752523231497,3.4,163.96,163.95,9.6184]
[1752523231995,182.68,163.96,163.95,9.6184]
[1752523232904,182.68,163.96,163.95,3.52]
[1752523233104,182.68,163.96,163.93,3.52]
[1752523233304,3.4,163.95,163.94,3.52]
[1752523233706,3.4,163.94,163.93,9.6192]
[1752523234310,3.4,163.94,163.85,127.97340023]
[1752523234602,3.4,163.94,163.91,3.52]
[1752523234797,3.4,163.94,163.91,9.6197]
[1752523234995,3.4,163.93,163.92,3.52]
[1752523235401,186.91220965,163.96,163.91,6.0997]
[1752523235599,3.4,163.92,163.91,9.6197]
[1752523235807,3.4,163.92,163.91,3.52]
[1752523236105,3.4,163.91,163.9,3.52]
[1752523236302,182.6,163.91,163.9,3.52]
[1752523236507,182.6,163.91,163.9,9.6204]
[1752523236900,182.6,163.91,163.89,6.1004]
[1752523237098,3.4,163.9,163.89,9.6204]
[1752523237408,3.4,163.9,163.89,3.52]
[1752523238209,3.4,163.9,163.89,9.6208]
[1752523238610,179.2,163.91,163.89,3.52]
[1752523238910,179.2,163.91,163.9,3.52]
[1752523239410,7.63220965,163.94,163.9,3.52]
[1752523239707,3.4,163.97,163.9,3.52]
[1752523240010,179.08,163.94,163.9,3.52]
[1752523240207,3.4,163.92,163.88,3.52]
[1752523240511,3.4,163.92,163.85,135.60560988]
[1752523240512,3.4,163.91,163.89,3.52]
[1752523240807,3.4,163.91,163.9,3.52]
[1752523243114,3.4,163.91,163.89,6.1005]
[1752523243115,185.1791,163.94,163.89,6.1005]
[1752523243311,3.4,163.9,163.89,9.6205]
[1752523244519,3.4,163.9,163.89,6.1005]
[1752523245610,3.4,163.9,163.88,6.1009]
[1752523245811,3.4,163.88,163.85,3.52]
[1752523246010,3.4,163.88,163.81,3.52]
[1752523246508,0.03846995,163.86,163.81,3.52]
[1752523246716,3.43846995,163.86,163.85,9.6221]
[1752523247117,0.03846995,163.86,163.85,9.6221]
[1752523247813,3.43846995,163.86,163.85,3.52]
[1752523248612,3.43846995,163.86,163.81,4.58954133]
[1752523248813,3.43846995,163.86,163.81,9.6235]
[1752523248814,3.4,163.85,163.81,9.6235]
[1752523249020,3.4,163.85,163.82,3.52]
[1752523249218,178.9,163.84,163.82,3.52]
[1752523249414,3.4,163.83,163.81,6.1035]
[1752523249613,3.4,163.82,163.81,9.6235]
[1752523249813,182.3,163.84,163.83,3.52]
[1752523250815,178.9,163.84,163.81,3.52]
[1752523251017,3.4,163.83,163.81,3.52]
[1752523251225,3.4,163.82,163.79,3.52]
[1752523251420,3.4,163.81,163.8,3.52]
[1752523252222,3.4,163.83,163.8,3.52]
[1752523252423,3.4,163.83,163.75,7.65313625]
[1752523252622,3.4,163.83,163.81,3.52]
[1752523252824,3.4,163.82,163.81,3.52]
[1752523254123,3.4,163.86,163.82,3.52]
[1752523254327,3.4,163.84,163.78,3.52]
[1752523254827,3.4,163.84,163.79,6.1042]
[1752523255023,3.4,163.84,163.8,3.52]
[1752523255327,17.15639751,163.84,163.81,3.52]
[1752523255629,3.4,163.83,163.81,3.52]
[1752523256125,3.4,163.83,163.76,3.52]
[1752523256333,3.4,163.81,163.76,3.52]
[1752523256825,3.4,163.81,163.78,6.1046]
[1752523257020,3.4,163.81,163.78,9.6246]
[1752523257527,7.65369751,163.82,163.76,3.52]
[1752523257528,3.4,163.79,163.76,3.52]
[1752523257831,3.4,163.78,163.77,3.52]
[1752523258422,3.4,163.78,163.74,6.106]
[1752523258629,3.4,163.78,163.72,3.52]
[1752523259028,3.4,163.78,163.75,9.6258]
[1752523259428,3.4,163.78,163.69,7.65369751]
[1752523259429,3.4,163.77,163.7,3.52]
[1752523259734,3.4,163.77,163.74,3.52]
[1752523260128,9.5053,163.77,163.74,3.52]
[1752523260328,7.65369751,163.78,163.74,3.52]
[1752523260527,3.4,163.77,163.74,3.52]
[1752523260728,3.42,163.76,163.75,9.4159]
[1752523261130,11.07369751,163.78,163.76,3.31]
[1752523261327,178.74,163.79,163.76,3.31]
[1752523261527,182.16,163.79,163.76,3.31]
[1752523261728,178.74,163.8,163.76,3.31]
[1752523261923,3.42,163.81,163.76,3.31]
[1752523262130,3.42,163.84,163.76,3.31]
[1752523262323,178.78,163.84,163.76,3.31]
[1752523262530,3.42,163.83,163.76,3.31]
[1752523262926,3.42,163.82,163.81,3.31]
[1752523263229,182.2,163.84,163.82,3.31]
[1752523263432,3.42,163.83,163.82,3.31]
[1752523264332,3.42,163.83,163.76,3.31]
[1752523264632,3.42,163.82,163.78,3.31]
[1752523264836,3.42,163.82,163.72,7.6529245]
[1752523265132,3.42,163.8,163.73,3.31]
[1752523265529,7.6529245,163.81,163.77,6.105]
[1752523265727,7.6529245,163.81,163.78,3.31]
[1752523265728,3.42,163.79,163.78,3.31]
[1752523267831,3.42,163.79,163.76,6.1055]
[1752523268032,3.42,163.78,163.77,3.31]
[1752523268231,3.42,163.77,163.69,7.6529245]
[1752523268431,3.42,163.77,163.7,3.31]
[1752523268831,9.5254,163.77,163.7,3.31]
[1752523269029,3.42,163.76,163.7,3.31]
[1752523269630,3.42,163.76,163.73,3.31]
[1752523269831,3.42,163.75,163.67,7.6529245]
[1752523270126,3.42,163.75,163.71,3.31]
[1752523270431,3.42,163.76,163.68,7.66219745]
[1752523270637,3.42,163.76,163.73,6.1065]
[1752523270830,178.9,163.77,163.74,3.31]
[1752523271038,3.42,163.75,163.74,3.31]
[1752523271836,3.42,163.75,163.71,3.31]
[1752523272132,9.5261,163.75,163.71,3.31]
[1752523272330,3.42,163.74,163.71,3.31]
[1752523272733,6.1063,163.74,163.71,3.31]
[1752523272936,7.66170947,163.74,163.64,534.92170947]
[1752523273241,7.66170947,163.74,163.65,3.31]
[1752523273242,3.42,163.73,163.65,3.31]
[1752523273436,3.42,163.73,163.67,3.31]
[1752523273935,3.42,163.73,163.72,3.31]
[1752523275633,3.42,163.73,163.7,6.1077]
[1752523275634,8.01755141,163.73,163.7,6.1077]
[1752523275841,3.42,163.71,163.7,9.4177]
[1752523276134,3.42,163.71,163.7,3.31]
[1752523276330,8.01755141,163.71,163.65,3.31]
[1752523277036,8.01755141,163.71,163.68,6.1085]
[1752523277236,3.42,163.7,163.69,3.31]
[1752523279641,3.42,163.7,163.65,3.31]
[1752523279946,3.42,163.69,163.65,3.31]
[1752523280441,3.42,163.69,163.66,6.109]
[1752523280637,3.42,163.69,163.64,4.59755141]
[1752523280838,3.42,163.69,163.68,3.31]
[1752523282643,3.42,163.69,163.68,9.4186]
[1752523282944,3.42,163.69,163.66,9.4191]
[1752523283142,3.42,163.68,163.67,3.31]
[1752523284142,3.42,163.7,163.63,3.31]
[1752523284542,3.42,163.7,163.69,3.31]
[1752523285338,9.5278,163.7,163.67,3.31]
[1752523285544,10.70535141,163.7,163.62,4.59755141]
[1752523285740,3.42,163.67,163.66,9.4193]
[1752523286342,3.42,163.67,163.66,3.31]
[1752523286542,3.42,163.67,163.64,6.1097]
[1752523286737,4.59755141,163.7,163.65,3.31]
[1752523286738,3.42,163.66,163.65,3.31]
[1752523287039,3.42,163.66,163.65,9.4197]
[1752523287743,3.42,163.69,163.66,3.31]
[1752523288346,3.42,163.69,163.66,9.4191]
[1752523288536,3.42,163.69,163.62,4.59755141]
[1752523288740,3.42,163.69,163.63,3.31]
[1752523289045,3.42,163.68,163.67,3.31]
[1752523289934,3.42,163.68,163.67,9.419]
[1752523290136,8.01755141,163.7,163.67,9.419]
[1752523290334,3.42,163.69,163.68,3.31]
[1752523290542,3.42,163.69,163.66,3.53]
[1752523290743,3.42,163.69,163.62,4.59755141]
[1752523290935,3.42,163.69,163.65,3.53]
[1752523291338,6.1088,163.68,163.65,3.53]
[1752523291538,3.3,163.67,163.65,3.53]
[1752523291742,3.3,163.66,163.65,3.53]
[1752523291943,3.3,163.66,163.65,9.6397]
[1752523292746,3.3,163.66,163.59,3.53]
[1752523293048,3.3,163.66,163.6,3.53]
[1752523293347,3.3,163.65,163.64,3.53]
[1752523294150,3.3,163.65,163.64,9.6401]
[1752523295550,3.3,163.69,163.64,3.53]
[1752523295750,5.08507515,163.74,163.65,4.59755141]
[1752523296046,3.3,163.73,163.7,6.1076]
[1752523296251,3.3,163.72,163.71,3.53]
[1752523296847,3.3,163.74,163.71,3.53]
[1752523297349,3.3,163.74,163.69,4.59755141]
[1752523297546,9.4065,163.74,163.69,4.59755141]
[1752523297752,3.3,163.73,163.72,3.53]
[1752523298147,3.3,163.73,163.66,4.59755141]
[1752523298348,3.3,163.73,163.67,3.53]
[1752523298544,3.3,163.73,163.69,3.53]
[1752523298847,3.3,163.72,163.67,3.53]
[1752523299644,3.3,163.71,163.67,3.53]
[1752523300048,3.3,163.71,163.69,6.1082]
[1752523300244,3.3,163.71,163.67,3.53]
[1752523300448,3.3,163.73,163.67,3.53]
[1752523300745,10.70415141,163.74,163.7,6.1077]
[1752523300954,14.00415141,163.74,163.71,3.53]
[1752523301147,14.00415141,163.74,163.7,6.1077]
[1752523301148,3.3,163.73,163.72,3.53]
[1752523301653,9.4067,163.73,163.72,3.53]
[1752523302153,6.1067,163.73,163.69,6.108]
[1752523302353,3.3,163.72,163.71,3.53]
[1752523302562,3.3,163.71,163.7,3.53]
[1752523303462,3.3,163.72,163.71,3.53]
[1752523305360,3.3,163.72,163.7,6.1076]
[1752523305657,3.3,163.72,163.71,3.53]
[1752523306060,6.1075,163.71,163.64,4.59755141]
[1752523306258,3.3,163.69,163.65,3.53]
[1752523306658,3.3,163.69,163.67,3.53]
[1752523307059,3.3,163.69,163.66,9.639]
[1752523307260,3.3,163.67,163.66,3.53]
[1752523307853,9.409,163.67,163.63,6.1101]
[1752523308059,6.109,163.67,163.64,3.53]
[1752523308263,3.3,163.72,163.64,3.53]
[1752523308462,3.3,163.67,163.64,3.53]
[1752523308658,182.75755141,163.73,163.66,3.53]
[1752523308859,186.05755141,163.73,163.66,3.53]
[1752523309163,3.3,163.72,163.66,3.53]
[1752523309465,3.3,163.7,163.69,3.53]
[1752523310465,9.4078,163.7,163.69,3.53]
[1752523311162,3.3,163.69,163.68,3.53]
[1752523311360,3.3,163.68,163.64,3.53]
[1752523311566,3.3,163.68,163.61,9.63827674]
[1752523311765,9.4087,163.68,163.62,3.53]
[1752523311960,3.3,163.68,163.62,3.53]
[1752523312161,4.59755141,163.71,163.66,3.53]
[1752523312466,3.3,163.69,163.66,3.53]
[1752523312663,3.3,163.71,163.66,3.53]
[1752523312966,3.3,163.7,163.66,3.53]
[1752523313464,3.3,163.72,163.69,3.53]
[1752523313663,3.3,163.71,163.7,3.53]
[1752523315166,3.3,163.71,163.66,3.53]
[1752523316065,3.3,163.71,163.68,6.1084]
[1752523316268,3.3,163.7,163.69,3.53]
[1752523316764,7.89755141,163.73,163.66,3.53]